[Event "Cellavision Cup 2019"]
[Site "Lund"]
[Date "2019.08.02"]
[Round "3.15"]
[White "Pedersen, Jacob Bang"]
[Black "Jepson, Christian"]
[Result "0-1"]
[ECO "D35"]
[WhiteElo "2152"]
[BlackElo "2391"]
[Annotator "NA"]
[PlyCount "128"]
[EventDate "2019.08.02"]
[EventType "swiss"]
[EventCountry "SWE"]
[SourceTitle "playchess.com"]
[Source "ChessBase"]
[SourceQuality "1"]
[TimeControl "900+5"]

1. d4 {[%emt 0:00:00]} d5 {[%emt 0:00:31]} 2. c4 {[%emt 0:00:01]} e6 {[%emt 0:00:03]} 3. Nc3 {[%emt 0:00:10]} Nf6 {[%emt 0:00:12]} 4. cxd5 {[%emt 0:00:08]} exd5 {[%emt 0:00:02]} 5. Bg5 {[%emt 0:00:04]} Nbd7 {[%emt 0:00:17]} 6. e3 {[%emt 0:00:09]} c6 {[%emt 0:00:09]} 7. Bd3 {[%emt 0:00:14]} Be7 {[%emt 0:00:25]} 8. Nge2 {[%emt 0:00:18]} Nb6 {[%emt 0:00:52]} 9. Qc2 {[%emt 0:00:45]} Nh5 {[%emt 0:00:15]} 10. Bxe7 {[%emt 0:01:50]} Qxe7 {[%emt 0:00:03]} 11. Rc1 {[%emt 0:01:18]} g6 {[%emt 0:00:27]} 12. O-O {[%emt 0:01:46]} O-O {[%emt 0:00:05]} 13. Ng3 {[%emt 0:00:36]} Nxg3 {[%emt 0:02:12]} 14. hxg3 {[%emt 0:00:03]} Bd7 {[%emt 0:00:42]} 15. Rfe1 {[%emt 0:00:46]} Rae8 {[%emt 0:00:02]} 16. a3 {[%emt 0:01:27]} Kg7 {[%emt 0:01:12]} 17. b4 {[%emt 0:00:59]} a6 {[%emt 0:01:28]} 18. Ne2 {[%emt 0:00:32]} Nc8 {[%emt 0:00:42]} 19. Nf4 {[%emt 0:01:29]} Nd6 {[%emt 0:00:07]} 20. Qc3 {[%emt 0:01:50]} Qf6 {[%emt 0:01:58]} 21. a4 {[%emt 0:00:50]} Bf5 {[%emt 0:00:52]} 22. b5 {[%emt 0:00:57]} Bxd3 {[%emt 0:00:25]} 23. Qxd3 {[%emt 0:00:04]} axb5 {[%emt 0:00:56]} 24. axb5 Nxb5 {[%emt 0:00:02]} 25. Nxd5 {[%emt 0:00:06]} Qd6 {[%emt 0:01:06]} 26. Nf4 {[%emt 0:00:07]} Nc7 {[%emt 0:00:25]} 27. Rb1 {[%emt 0:00:06]} Rb8 {[%emt 0:00:11]} 28. Rec1 {[%emt 0:00:18]} Rfd8 {[%emt 0:00:13]} 29. Qc3 {[%emt 0:00:09]} Nb5 {[%emt 0:00:13]} 30. Qb2 {[%emt 0:00:07]} Qa3 {[%emt 0:00:19]} 31. Qc2 {[%emt 0:00:10]} Kg8 {[%emt 0:00:15]} 32. Rb3 {[%emt 0:00:05]} Qd6 {[%emt 0:00:03]} 33. Rcb1 {[%emt 0:00:03]} Na3 {[%emt 0:00:04]} 34. Qb2 {[%emt 0:00:10]} Nxb1 {[%emt 0:00:02]} 35. Qxb1 {[%emt 0:00:01]} c5 {[%emt 0:00:19]} 36. dxc5 {[%emt 0:00:04]} Qxc5 {[%emt 0:00:03]} 37. Rxb7 {[%emt 0:00:04]} Rxb7 {[%emt 0:00:14]} 38. Qxb7 {[%emt 0:00:01]} Qd6 {[%emt 0:00:16]} 39. Qf3 {[%emt 0:00:05]} Qd1+ {[%emt 0:00:03]} 40. Qxd1 {[%emt 0:00:02]} Rxd1+ {[%emt 0:00:01]} 41. Kh2 {[%emt 0:00:02]} Rf1 {[%emt 0:00:02]} 42. Nh3 {[%emt 0:00:01]} f5 {[%emt 0:00:07]} 43. f3 {[%emt 0:00:23]} Re1 {[%emt 0:00:03]} 44. e4 {[%emt 0:00:01]} fxe4 {[%emt 0:00:01]} 45. fxe4 Rxe4 {[%emt 0:00:01]} 46. Ng5 {[%emt 0:00:04]} Ra4 {[%emt 0:00:05]} 47. Nf3 Kg7 {[%emt 0:00:03]} 48. Nh4 {[%emt 0:00:02]} Kf6 {[%emt 0:00:02]} 49. Nf3 {[%emt 0:00:00]} Kf5 {[%emt 0:00:05]} 50. Nh4+ {[%emt 0:00:01]} Kg4 {[%emt 0:00:02]} 51. Nf3 {[%emt 0:00:01]} Re4 {[%emt 0:00:03]} 52. Ng1 {[%emt 0:00:02]} h6 {[%emt 0:00:03]} 53. Nh3 {[%emt 0:00:01]} Kf5 {[%emt 0:00:04]} 54. Nf2 {[%emt 0:00:04]} Re1 {[%emt 0:00:02]} 55. Nh3 {[%emt 0:00:01]} g5 {[%emt 0:00:04]} 56. Nf2 {[%emt 0:00:04]} Re2 {[%emt 0:00:04]} 57. Nh3 {[%emt 0:00:05]} Ke4 {[%emt 0:00:05]} 58. Ng1 {[%emt 0:00:01]} Ra2 {[%emt 0:00:02]} 59. Nf3 {[%emt 0:00:02]} Ke3 {[%emt 0:00:02]} 60. Ne5 {[%emt 0:00:06]} Ra4 {[%emt 0:00:06]} 61. Nf7 {[%emt 0:00:03]} Ra6 {[%emt 0:00:03]} 62. Ne5 {[%emt 0:00:00]} h5 {[%emt 0:00:05]} 63. Nf3 {[%emt 0:00:01]} Ra5 {[%emt 0:00:04]} 64. Ng1 {[%emt 0:00:04]} g4 {[%emt 0:00:03]} 0-1

[Event "Cellavision Cup 2019"]
[Site "Lund"]
[Date "2019.08.02"]
[Round "3.16"]
[White "Lindberg, Bengt"]
[Black "Jogstad, Daniel"]
[Result "1-0"]
[ECO "B80"]
[WhiteElo "2384"]
[BlackElo "2154"]
[Annotator "NA"]
[PlyCount "81"]
[EventDate "2019.08.02"]
[EventType "swiss"]
[EventCountry "SWE"]
[SourceTitle "playchess.com"]
[Source "ChessBase"]
[SourceQuality "1"]
[TimeControl "900+5"]

1. e4 {[%emt 0:00:00]} c5 {[%emt 0:00:00]} 2. Nf3 {[%emt 0:00:00]} e6 {[%emt 0:00:00]} 3. d4 {[%emt 0:00:02]} cxd4 {[%emt 0:00:00]} 4. Nxd4 {[%emt 0:00:01]} Nf6 {[%emt 0:00:00]} 5. Nc3 {[%emt 0:00:02]} d6 {[%emt 0:00:01]} 6. Be3 {[%emt 0:00:11]} Be7 {[%emt 0:00:02]} 7. f3 {[%emt 0:00:06]} O-O {[%emt 0:00:08]} 8. Qd2 {[%emt 0:00:03]} Nc6 {[%emt 0:00:03]} 9. O-O-O {[%emt 0:00:07]} d5 {[%emt 0:00:10]} 10. exd5 {[%emt 0:00:12]} Nxd5 {[%emt 0:00:11]} 11. Nxd5 {[%emt 0:00:20]} Qxd5 {[%emt 0:00:02]} 12. c4 {[%emt 0:01:27]} Qd7 {[%emt 0:01:20]} 13. Be2 {[%emt 0:00:52]} Bf6 {[%emt 0:00:39]} 14. Nb5 {[%emt 0:00:43]} Qe7 {[%emt 0:00:17]} 15. Qd6 {[%emt 0:00:25]} Qxd6 {[%emt 0:02:07]} 16. Nxd6 {[%emt 0:00:08]} Rd8 {[%emt 0:01:15]} 17. a3 {[%emt 0:00:22]} Be7 {[%emt 0:01:45]} 18. Nb5 {[%emt 0:00:21]} Bd7 {[%emt 0:00:23]} 19. Kb1 {[%emt 0:00:43]} e5 {[%emt 0:00:23]} 20. Bd3 {[%emt 0:01:39]} Be6 {[%emt 0:00:02]} 21. Nc7 {[%emt 0:01:40]} Rac8 {[%emt 0:00:01]} 22. Nxe6 {[%emt 0:00:03]} fxe6 {[%emt 0:00:01]} 23. b4 {[%emt 0:01:11]} Nd4 {[%emt 0:00:21]} 24. c5 {[%emt 0:00:06]} a5 {[%emt 0:01:12]} 25. Bc4 {[%emt 0:00:17]} Kf7 {[%emt 0:00:15]} 26. f4 {[%emt 0:02:44]} Nf5 {[%emt 0:00:00]} 27. Bc1 {[%emt 0:00:02]} h5 {[%emt 0:02:24]} 28. fxe5 {[%emt 0:00:15]} b6 {[%emt 0:00:21]} 29. Ba6 {[%emt 0:01:09]} bxc5 {[%emt 0:00:43]} 30. Bxc8 Rxc8 31. bxa5 {[%emt 0:00:23]} Ke8 {[%emt 0:01:15]} 32. Kc2 {[%emt 0:00:34]} Nd4+ {[%emt 0:00:09]} 33. Kc3 {[%emt 0:00:06]} Ra8 {[%emt 0:00:18]} 34. Be3 {[%emt 0:00:46]} Nb5+ {[%emt 0:00:07]} 35. Kd3 {[%emt 0:00:24]} Rxa5 {[%emt 0:00:08]} 36. Ra1 {[%emt 0:00:01]} Nxa3 {[%emt 0:00:15]} 37. Bc1 {[%emt 0:00:20]} c4+ {[%emt 0:00:12]} 38. Ke4 {[%emt 0:00:01]} Ra4 {[%emt 0:00:43]} 39. Bxa3 {[%emt 0:00:03]} Bxa3 {[%emt 0:00:04]} 40. Ra2 {[%emt 0:00:05]} Ra5 {[%emt 0:00:48]} 41. Rha1 {[%emt 0:00:06]} 1-0

[Event "Cellavision Cup 2019"]
[Site "Lund"]
[Date "2019.08.03"]
[Round "5.1"]
[White "Kulaots, Kaido"]
[Black "Dourerassou, Jonathan"]
[Result "1-0"]
[ECO "D35"]
[WhiteElo "2560"]
[BlackElo "2477"]
[Annotator "ChessBase"]
[PlyCount "121"]
[EventDate "2019.08.02"]
[EventType "swiss"]
[EventCountry "SWE"]
[SourceTitle "playchess.com"]
[Source "ChessBase"]
[SourceQuality "1"]
[TimeControl "5400+30"]

1. d4 {[%emt 0:00:00]} d5 {[%emt 0:00:00]} 2. c4 {[%emt 0:00:00]} e6 {[%emt 0:00:00]} 3. Nc3 {[%emt 0:00:06]} Nf6 {[%emt 0:00:20]} 4. cxd5 {[%emt 0:00:19]} exd5 {[%emt 0:00:07]} 5. Bg5 {[%emt 0:00:07]} Be7 {[%emt 0:00:06]} 6. e3 {[%emt 0:00:18]} Nbd7 {[%emt 0:00:19]} 7. Bd3 {[%emt 0:01:56]} c6 {[%emt 0:00:16]} 8. Nge2 {[%emt 0:01:17]} Nh5 {[%emt 0:00:16]} 9. Bxe7 {[%emt 0:01:33]} Qxe7 {[%emt 0:00:11]} 10. g4 {[%emt 0:02:02]} Nhf6 {[%emt 0:00:33]} 11. Ng3 {[%emt 0:04:08]} Nb6 {[%emt 0:01:52]} 12. g5 {[%emt 0:05:11]} Ng8 {[%emt 0:07:46]} 13. h4 {[%emt 0:01:15]} Qb4 {[%emt 0:02:58]} 14. Qc2 {[%emt 0:11:20]} Ne7 {[%emt 0:02:29]} 15. a3 {[%emt 0:02:56]} Qd6 {[%emt 0:00:29]} 16. h5 {[%emt 0:02:56]} Bd7 {[%emt 0:07:38]} 17. Bxh7 {[%emt 0:09:13]} g6 {[%emt 0:07:33]} 18. hxg6 {[%emt 0:00:12]} fxg6 {[%emt 0:00:07]} 19. Rh6 {[%emt 0:02:20]} O-O-O {[%emt 0:01:11]} 20. O-O-O {[%emt 0:06:54]} Nc4 {[%emt 0:08:46]} 21. Nce4 {[%emt 0:13:59]} Qc7 {[%emt 0:05:36]} 22. Qe2 {[%emt 0:07:39]} Nxa3 {[%emt 0:07:40]} 23. bxa3 {[%emt 0:02:02]} dxe4 {[%emt 0:00:09]} 24. Nxe4 {[%emt 0:01:24]} Bf5 {[%emt 0:08:37]} 25. Nf6 {[%emt 0:06:15]} Qa5 {[%emt 0:07:59]} 26. e4 {[%emt 0:07:26]} Be6 {[%emt 0:00:07]} 27. Qe3 {[%emt 0:01:07]} Bb3 {[%emt 0:01:59]} 28. Rd2 {[%emt 0:02:07]} Qb5 {[%emt 0:07:14]} 29. f4 {[%emt 0:01:30]} Kb8 {[%emt 0:03:13]} 30. Rh1 {[%emt 0:01:10]} Ka8 {[%emt 0:07:39]} 31. Qc3 {[%emt 0:00:47]} Bg8 {[%emt 0:03:04]} 32. Qb4 {[%emt 0:01:56]} Qxb4 {[%emt 0:03:31]} 33. axb4 {[%emt 0:00:05]} Be6 {[%emt 0:00:04]} 34. Kc2 {[%emt 0:01:26]} a6 {[%emt 0:00:42]} 35. Rh6 {[%emt 0:00:29]} Ka7 {[%emt 0:00:58]} 36. Kc3 {[%emt 0:00:21]} Kb6 {[%emt 0:01:03]} 37. Rh1 {[%emt 0:02:28]} Ra8 {[%emt 0:00:28]} 38. Ra1 {[%emt 0:00:45]} Kc7 {[%emt 0:01:39]} 39. Ra5 {[%emt 0:00:29]} Bf7 {[%emt 0:01:40]} 40. Re5 {[%emt 0:01:42]} Kd6 {[%emt 0:00:17]} 41. Rh2 {[%emt 0:00:12]} b5 {[%emt 0:00:55]} 42. f5 {[%emt 0:00:33]} a5 {[%emt 0:00:19]} 43. bxa5 {[%emt 0:00:52]} Rxa5 {[%emt 0:00:04]} 44. Rb2 {[%emt 0:00:19]} b4+ {[%emt 0:01:20]} 45. Rxb4 {[%emt 0:00:30]} Ra3+ {[%emt 0:01:31]} 46. Kc2 {[%emt 0:00:11]} gxf5 {[%emt 0:01:25]} 47. Rb7 {[%emt 0:00:22]} Be6 {[%emt 0:00:13]} 48. Rxe7 {[%emt 0:01:08]} Kxe7 {[%emt 0:00:14]} 49. exf5 {[%emt 0:00:05]} Rha8 {[%emt 0:00:17]} 50. Rxe6+ {[%emt 0:00:13]} Kf7 {[%emt 0:00:05]} 51. Bg6+ {[%emt 0:00:17]} Kf8 {[%emt 0:00:18]} 52. Nd7+ {[%emt 0:00:11]} Kg8 {[%emt 0:00:10]} 53. Re8+ {[%emt 0:01:11]} Rxe8 {[%emt 0:00:18]} 54. Bxe8 {[%emt 0:00:05]} Ra8 {[%emt 0:01:03]} 55. g6 {[%emt 0:00:20]} Kh8 {[%emt 0:00:20]} 56. Bf7 {[%emt 0:00:56]} c5 {[%emt 0:01:29]} 57. f6 {[%emt 0:00:13]} cxd4 {[%emt 0:00:21]} 58. g7+ {[%emt 0:00:13]} Kh7 {[%emt 0:00:05]} 59. Nf8+ {[%emt 0:00:13]} Kh6 {[%emt 0:00:17]} 60. g8=Q {[%emt 0:00:37]} d3+ {[%emt 0:01:03]} 61. Kc3 {[%emt 0:00:47]} 1-0

[Event "Cellavision Cup 2019"]
[Site "Lund"]
[Date "2019.08.03"]
[Round "5.2"]
[White "Popilski, Gil"]
[Black "Burg, Twan"]
[Result "1/2-1/2"]
[ECO "E47"]
[WhiteElo "2467"]
[BlackElo "2526"]
[Annotator "ChessBase"]
[PlyCount "57"]
[EventDate "2019.08.02"]
[EventType "swiss"]
[EventCountry "SWE"]
[SourceTitle "playchess.com"]
[Source "ChessBase"]
[SourceQuality "1"]
[TimeControl "5400+30"]

1. d4 {[%emt 0:03:49]} Nf6 {[%emt 0:00:00]} 2. c4 {[%emt 0:00:04]} e6 {[%emt 0:00:00]} 3. Nc3 {[%emt 0:00:41]} Bb4 {[%emt 0:00:00]} 4. e3 {[%emt 0:01:51]} O-O {[%emt 0:00:19]} 5. Bd3 {[%emt 0:00:04]} c5 {[%emt 0:00:24]} 6. Nge2 {[%emt 0:00:05]} cxd4 {[%emt 0:01:34]} 7. exd4 {[%emt 0:00:06]} d5 {[%emt 0:00:06]} 8. cxd5 {[%emt 0:00:04]} Nxd5 {[%emt 0:00:23]} 9. O-O {[%emt 0:00:07]} Nc6 {[%emt 0:00:21]} 10. Bc2 {[%emt 0:00:50]} Be7 {[%emt 0:04:06]} 11. Qd3 {[%emt 0:03:59]} Nf6 {[%emt 0:00:10]} 12. a3 {[%emt 0:01:36]} b6 {[%emt 0:02:25]} 13. Bg5 {[%emt 0:06:00]} g6 {[%emt 0:00:09]} 14. Rad1 {[%emt 0:00:20]} Bb7 {[%emt 0:02:10]} 15. Rfe1 {[%emt 0:05:52]} Nd5 {[%emt 0:05:21]} 16. Bh6 {[%emt 0:07:34]} Re8 {[%emt 0:00:37]} 17. Nxd5 {[%emt 0:20:40]} exd5 {[%emt 0:00:17]} 18. Nf4 {[%emt 0:00:13]} Rc8 {[%emt 0:08:48]} 19. Bb3 {[%emt 0:10:30]} Na5 {[%emt 0:03:11]} 20. Ba4 {[%emt 0:03:51]} Bc6 {[%emt 0:00:06]} 21. Bxc6 {[%emt 0:15:03]} Nxc6 {[%emt 0:00:04]} 22. h3 {[%emt 0:01:08]} Qd6 {[%emt 0:00:30]} 23. Qg3 {[%emt 0:03:11]} Bf8 {[%emt 0:06:11]} 24. Bxf8 {[%emt 0:00:29]} Rxe1+ {[%emt 0:00:44]} 25. Rxe1 {[%emt 0:00:02]} Rxf8 {[%emt 0:00:16]} 26. Qg5 {[%emt 0:04:13]} Nxd4 {[%emt 0:09:05]} 27. Nxd5 {[%emt 0:00:07]} f6 {[%emt 0:02:27]} 28. Ne7+ {[%emt 0:00:05]} Qxe7 {[%emt 0:00:55]} 29. Qd5+ {[%emt 0:00:06]} 1/2-1/2

[Event "Cellavision Cup 2019"]
[Site "Lund"]
[Date "2019.08.03"]
[Round "5.3"]
[White "Seo, Jung Min"]
[Black "Marin, Mihail"]
[Result "1/2-1/2"]
[ECO "A80"]
[WhiteElo "2399"]
[BlackElo "2525"]
[Annotator "ChessBase"]
[PlyCount "63"]
[EventDate "2019.08.02"]
[EventType "swiss"]
[EventCountry "SWE"]
[SourceTitle "playchess.com"]
[Source "ChessBase"]
[SourceQuality "1"]
[TimeControl "5400+30"]

1. d4 {[%emt 0:00:00]} f5 {[%emt 0:00:00]} 2. Bg5 {[%emt 0:01:46]} g6 {[%emt 0:00:00]} 3. h4 {[%emt 0:00:23]} Bg7 {[%emt 0:00:37]} 4. e3 {[%emt 0:02:05]} d6 {[%emt 0:01:11]} 5. Nc3 {[%emt 0:04:52]} h6 {[%emt 0:04:12]} 6. Bf4 {[%emt 0:00:12]} Nf6 {[%emt 0:01:08]} 7. Bc4 {[%emt 0:02:29]} e6 {[%emt 0:02:05]} 8. Nge2 {[%emt 0:02:30]} Qe7 {[%emt 0:00:40]} 9. Bh2 {[%emt 0:06:47]} e5 {[%emt 0:06:01]} 10. Qd2 {[%emt 0:02:06]} Be6 {[%emt 0:09:31]} 11. Bb3 {[%emt 0:09:03]} Bxb3 {[%emt 0:00:58]} 12. axb3 {[%emt 0:00:15]} Nc6 {[%emt 0:00:38]} 13. O-O-O {[%emt 0:08:04]} O-O-O {[%emt 0:07:17]} 14. Kb1 {[%emt 0:06:23]} Qf7 {[%emt 0:04:51]} 15. f3 {[%emt 0:06:21]} Nd5 {[%emt 0:09:01]} 16. Nxd5 {[%emt 0:15:24]} Qxd5 {[%emt 0:00:32]} 17. dxe5 {[%emt 0:01:36]} Qxd2 {[%emt 0:00:25]} 18. Rxd2 {[%emt 0:00:01]} Bxe5 {[%emt 0:01:06]} 19. Bxe5 {[%emt 0:02:39]} dxe5 {[%emt 0:06:23]} 20. Rxd8+ {[%emt 0:00:37]} Rxd8 {[%emt 0:00:33]} 21. Kc1 {[%emt 0:00:02]} Kd7 {[%emt 0:03:37]} 22. Rd1+ {[%emt 0:00:05]} Ke6 {[%emt 0:00:39]} 23. Rxd8 {[%emt 0:00:11]} Nxd8 {[%emt 0:00:06]} 24. Kd2 {[%emt 0:00:14]} Nf7 {[%emt 0:00:31]} 25. Nc3 {[%emt 0:00:32]} Nd6 {[%emt 0:00:44]} 26. Kd3 {[%emt 0:00:29]} c6 {[%emt 0:02:09]} 27. g3 {[%emt 0:02:26]} h5 {[%emt 0:01:52]} 28. e4 {[%emt 0:01:19]} Nf7 {[%emt 0:01:51]} 29. Ke3 {[%emt 0:00:11]} Nd6 {[%emt 0:01:43]} 30. Kd3 {[%emt 0:01:36]} Nf7 {[%emt 0:06:38]} 31. Ke3 {[%emt 0:00:13]} Nd6 {[%emt 0:00:17]} 32. Kd3 {[%emt 0:00:02]} 1/2-1/2

[Event "Cellavision Cup 2019"]
[Site "Lund"]
[Date "2019.08.03"]
[Round "5.4"]
[White "Hector, Jonny"]
[Black "Kristiansen, Jens"]
[Result "1-0"]
[ECO "B81"]
[WhiteElo "2487"]
[BlackElo "2400"]
[Annotator "ChessBase"]
[PlyCount "57"]
[EventDate "2019.08.02"]
[EventType "swiss"]
[EventCountry "SWE"]
[SourceTitle "playchess.com"]
[Source "ChessBase"]
[SourceQuality "1"]
[TimeControl "5400+30"]

1. e4 {[%emt 0:00:00]} c5 {[%emt 0:00:00]} 2. Nf3 {[%emt 0:00:00]} d6 {[%emt 0:00:00]} 3. d4 {[%emt 0:00:00]} cxd4 {[%emt 0:00:00]} 4. Nxd4 {[%emt 0:00:00]} Nf6 {[%emt 0:00:00]} 5. Nc3 {[%emt 0:00:06]} e6 {[%emt 0:00:01]} 6. g4 {[%emt 0:01:02]} h6 {[%emt 0:00:16]} 7. h4 {[%emt 0:00:18]} Be7 {[%emt 0:03:05]} 8. Qf3 {[%emt 0:01:15]} Nc6 {[%emt 0:00:38]} 9. Nxc6 {[%emt 0:00:43]} bxc6 {[%emt 0:00:07]} 10. g5 {[%emt 0:00:55]} Nd7 {[%emt 0:00:18]} 11. gxh6 {[%emt 0:00:43]} gxh6 {[%emt 0:00:08]} 12. Bd2 {[%emt 0:03:02]} Bxh4 {[%emt 0:05:05]} 13. O-O-O {[%emt 0:06:58]} Qe7 {[%emt 0:06:17]} 14. e5 {[%emt 0:21:41]} Nxe5 {[%emt 0:07:56]} 15. Qe4 {[%emt 0:00:25]} Bf6 {[%emt 0:11:58]} 16. f4 {[%emt 0:00:49]} d5 {[%emt 0:00:40]} 17. Qa4 {[%emt 0:05:44]} Nd7 {[%emt 0:00:16]} 18. Qxc6 {[%emt 0:00:18]} Rb8 {[%emt 0:00:12]} 19. Bb5 {[%emt 0:01:54]} Kf8 {[%emt 0:10:06]} 20. Nxd5 {[%emt 0:04:43]} exd5 {[%emt 0:01:13]} 21. a3 {[%emt 0:09:08]} a5 {[%emt 0:18:22]} 22. Bxa5 {[%emt 0:01:44]} Qe3+ {[%emt 0:00:20]} 23. Kb1 {[%emt 0:04:00]} Be7 {[%emt 0:09:58]} 24. Rde1 {[%emt 0:08:02]} Qc5 {[%emt 0:01:06]} 25. Bb4 {[%emt 0:00:43]} Qxc6 {[%emt 0:02:55]} 26. Bxe7+ {[%emt 0:00:09]} Kg7 {[%emt 0:00:27]} 27. Bxc6 {[%emt 0:00:40]} Nb6 {[%emt 0:00:54]} 28. Reg1+ {[%emt 0:02:16]} Kh7 {[%emt 0:00:28]} 29. Bf6 {[%emt 0:00:12]} 1-0

[Event "Cellavision Cup 2019"]
[Site "Lund"]
[Date "2019.08.03"]
[Round "5.6"]
[White "Kryakvin, Dmitry"]
[Black "Smith, Axel"]
[Result "1-0"]
[ECO "A04"]
[WhiteElo "2586"]
[BlackElo "2469"]
[Annotator "ChessBase"]
[PlyCount "185"]
[EventDate "2019.08.02"]
[EventType "swiss"]
[EventCountry "SWE"]
[SourceTitle "playchess.com"]
[Source "ChessBase"]
[SourceQuality "1"]
[TimeControl "5400+30"]

1. Nf3 {[%emt 0:00:00]} c5 {[%emt 0:00:00]} 2. c4 {[%emt 0:00:02]} Nc6 {[%emt 0:01:01]} 3. Nc3 {[%emt 0:00:16]} e5 {[%emt 0:00:35]} 4. g3 {[%emt 0:00:31]} d6 {[%emt 0:01:09]} 5. Bg2 {[%emt 0:00:20]} g6 {[%emt 0:00:57]} 6. d3 {[%emt 0:00:19]} Nge7 {[%emt 0:03:17]} 7. Nd2 {[%emt 0:07:42]} Be6 {[%emt 0:05:15]} 8. Nd5 {[%emt 0:00:20]} Bg7 {[%emt 0:00:53]} 9. Nb1 {[%emt 0:00:35]} Rb8 {[%emt 0:10:29]} 10. Nbc3 {[%emt 0:02:01]} a6 {[%emt 0:01:29]} 11. Bg5 {[%emt 0:07:54]} h6 {[%emt 0:04:06]} 12. Bxe7 {[%emt 0:02:32]} Nxe7 {[%emt 0:00:08]} 13. Nxe7 {[%emt 0:00:34]} Qxe7 {[%emt 0:00:21]} 14. Nd5 {[%emt 0:01:15]} Bxd5 {[%emt 0:01:33]} 15. Bxd5 {[%emt 0:00:52]} e4 {[%emt 0:07:43]} 16. O-O {[%emt 0:04:30]} exd3 {[%emt 0:10:04]} 17. Qxd3 {[%emt 0:00:50]} Qf6 {[%emt 0:01:13]} 18. Rab1 {[%emt 0:02:05]} a5 {[%emt 0:08:18]} 19. Qe4+ {[%emt 0:08:09]} Qe5 {[%emt 0:09:24]} 20. Qc2 {[%emt 0:01:06]} b6 {[%emt 0:02:35]} 21. Rfd1 {[%emt 0:03:22]} Kf8 {[%emt 0:05:11]} 22. Rd3 {[%emt 0:00:40]} Bf6 {[%emt 0:03:54]} 23. Re3 {[%emt 0:08:49]} Qh5 {[%emt 0:00:02]} 24. Rd1 {[%emt 0:06:27]} Kg7 {[%emt 0:03:39]} 25. Bf3 {[%emt 0:00:32]} Qf5 {[%emt 0:01:24]} 26. Qxf5 {[%emt 0:02:47]} gxf5 {[%emt 0:00:01]} 27. Rxd6 {[%emt 0:00:53]} Rhd8 {[%emt 0:01:51]} 28. Rd5 {[%emt 0:01:53]} Rxd5 {[%emt 0:02:21]} 29. Bxd5 {[%emt 0:00:52]} a4 {[%emt 0:07:15]} 30. Ra3 {[%emt 0:03:34]} b5 {[%emt 0:00:10]} 31. cxb5 {[%emt 0:00:10]} Rxb5 {[%emt 0:00:04]} 32. b3 {[%emt 0:02:05]} axb3 {[%emt 0:00:13]} 33. axb3 {[%emt 0:00:05]} Be7 {[%emt 0:00:46]} 34. Ra7 {[%emt 0:01:07]} Kf6 {[%emt 0:00:02]} 35. Ra6+ {[%emt 0:00:35]} Kg7 {[%emt 0:00:06]} 36. Kg2 {[%emt 0:00:44]} Rb8 {[%emt 0:00:27]} 37. Bc4 {[%emt 0:01:56]} Rd8 {[%emt 0:00:29]} 38. Bd3 {[%emt 0:01:32]} Rb8 {[%emt 0:05:30]} 39. Bc2 {[%emt 0:01:32]} Rb4 {[%emt 0:02:15]} 40. Kf3 {[%emt 0:00:41]} f4 {[%emt 0:00:53]} 41. gxf4 {[%emt 0:01:28]} c4 {[%emt 0:00:02]} 42. bxc4 {[%emt 0:00:28]} Rxc4 {[%emt 0:00:01]} 43. Be4 {[%emt 0:00:31]} Rc3+ {[%emt 0:00:49]} 44. Bd3 {[%emt 0:00:27]} Rc5 {[%emt 0:01:28]} 45. Kg3 {[%emt 0:01:58]} Rc7 {[%emt 0:00:21]} 46. Kg4 {[%emt 0:02:07]} Rb7 {[%emt 0:01:47]} 47. Rc6 {[%emt 0:01:50]} Rb4 {[%emt 0:00:29]} 48. Kf5 {[%emt 0:01:18]} Ra4 {[%emt 0:00:59]} 49. h3 {[%emt 0:01:47]} Ra1 {[%emt 0:00:45]} 50. Rc7 {[%emt 0:02:31]} Kf8 {[%emt 0:00:27]} 51. Kg4 {[%emt 0:00:07]} Rf1 {[%emt 0:00:33]} 52. Kg3 {[%emt 0:00:32]} Ra1 {[%emt 0:00:16]} 53. Rd7 {[%emt 0:01:32]} Rg1+ {[%emt 0:00:25]} 54. Kf3 {[%emt 0:00:15]} Rh1 {[%emt 0:00:26]} 55. Kg2 {[%emt 0:01:31]} Ra1 {[%emt 0:00:06]} 56. Bc4 {[%emt 0:01:29]} Rc1 {[%emt 0:00:48]} 57. Bd5 {[%emt 0:01:06]} Rd1 {[%emt 0:00:05]} 58. e4 {[%emt 0:01:33]} f5 {[%emt 0:01:18]} 59. Rb7 {[%emt 0:03:15]} fxe4 {[%emt 0:00:07]} 60. Bxe4 {[%emt 0:00:06]} Rd2 {[%emt 0:00:25]} 61. Kg3 {[%emt 0:01:18]} Rd4 {[%emt 0:00:46]} 62. f3 {[%emt 0:00:43]} Rb4 {[%emt 0:00:39]} 63. Rd7 {[%emt 0:00:35]} Rb6 {[%emt 0:00:04]} 64. Kg4 {[%emt 0:00:45]} Rf6 {[%emt 0:00:11]} 65. f5 {[%emt 0:00:38]} Ra6 {[%emt 0:00:44]} 66. Rb7 {[%emt 0:00:44]} Kf7 {[%emt 0:01:16]} 67. Kh5 {[%emt 0:01:02]} Ra1 {[%emt 0:00:26]} 68. Rb6 {[%emt 0:01:58]} Bg5 {[%emt 0:00:38]} 69. Bd5+ {[%emt 0:00:15]} Ke7 {[%emt 0:00:32]} 70. Re6+ {[%emt 0:01:44]} Kd8 {[%emt 0:00:28]} 71. Kg6 {[%emt 0:00:34]} Ra5 {[%emt 0:00:33]} 72. Be4 {[%emt 0:00:29]} Bf4 {[%emt 0:00:30]} 73. f6 {[%emt 0:00:28]} Rg5+ {[%emt 0:00:13]} 74. Kf7 {[%emt 0:00:06]} Rg3 {[%emt 0:00:43]} 75. Rc6 {[%emt 0:01:50]} Kd7 {[%emt 0:00:26]} 76. Rc4 {[%emt 0:00:17]} Be5 {[%emt 0:00:13]} 77. Rc5 {[%emt 0:00:24]} Bf4 {[%emt 0:00:32]} 78. Rd5+ {[%emt 0:00:26]} Bd6 {[%emt 0:00:06]} 79. Bf5+ {[%emt 0:00:49]} Kc7 {[%emt 0:00:10]} 80. Ke6 {[%emt 0:00:36]} Bb4 {[%emt 0:01:05]} 81. Rd4 {[%emt 0:00:23]} Ba3 {[%emt 0:00:03]} 82. Rc4+ {[%emt 0:00:30]} Kb6 {[%emt 0:00:07]} 83. Rc3 {[%emt 0:00:10]} Bf8 {[%emt 0:00:15]} 84. Rc8 {[%emt 0:00:23]} Ba3 {[%emt 0:00:04]} 85. f7 {[%emt 0:00:26]} Rxf3 {[%emt 0:00:05]} 86. f8=Q {[%emt 0:00:10]} Bxf8 {[%emt 0:00:02]} 87. Rxf8 {[%emt 0:00:08]} Rf4 {[%emt 0:00:50]} 88. Rh8 {[%emt 0:00:35]} Rh4 {[%emt 0:00:02]} 89. Kf6 {[%emt 0:00:14]} Kc6 {[%emt 0:00:05]} 90. Kg6 {[%emt 0:00:12]} Kd6 {[%emt 0:00:05]} 91. Rxh6 {[%emt 0:00:15]} Rxh6+ {[%emt 0:00:06]} 92. Kxh6 {[%emt 0:00:05]} Ke7 {[%emt 0:00:14]} 93. Kg7 {[%emt 0:00:04]} 1-0